Cogmind - Beta 13 X1 @@@ ROGUE MODE // 2023.12.12 @ 23:17:47 Player: youngster Result: Destroyed by 8R-AWN with 8R-AWN's Boregun Performance ------------- Evolutions (0) 0 Regions Visited (3) 600 Robots Destroyed (32) 160 Value Destroyed (554) 554 Prototype IDs (41) 820 Alien Tech Used (0) 0 Bonus (-185) -185 TOTAL SCORE: 1949 Bonus ------- Follower Combat Kills 60 Aligned with FarCom 300 Friendly Fire -545 Cogmind --------- Core Integrity 0/250 Matter 295/300 Energy 125/125 System Corruption 0% Temperature Cool (52) Movement Treading (240) Ox1 Location -10/Exiles Parts ------- > --- POWER (1) -------- Light Ion Engine > --- PROPULSION (2) --- Light Treads Light Treads > --- UTILITY (2) ------ High-capacity Storage Unit > --- WEAPON (2) ------- EM Pulse Gun Light Assault Rifle > --- INVENTORY (20) --- Light Treads Light Treads Light Treads Wheel Wheel Grenade Launcher Grenade Launcher Peak State ------------ > --- POWER ------------ Ion Engine > --- PROPULSION ------- Light Treads Wheel > --- UTILITY ---------- Huge Storage Unit Cloak of Protection > --- WEAPON ----------- Medium Laser Datajack > --- INVENTORY -------- Ion Engine Light Ion Engine Light Treads Light Treads Light Treads Light Treads Light Treads Light Treads Light Treads Wheel High-capacity Matter Pod EM Pulse Gun Light Assault Rifle Light Assault Rifle Light Assault Rifle Grenade Launcher Grenade Launcher [Rating: 15] Favorites ----------- Power Ion Engine Engine Ion Engine Propulsion Light Treads Treads Light Treads Wheel Wheel Utility Huge Storage Unit Device Seismic Detector Storage Huge Storage Unit Processor Transport Network Coupler Weapon Medium Laser Energy Gun Medium Laser Ballistic Gun Light Assault Rifle Launcher Grenade Launcher Special Melee Weapon Datajack Build | -11 -10 -10 -10 ------- Run | Jun Mat Min Exi Slots Evolved . | . . . . Power . | . . . . Propulsion . | . . . . Utility . | . . . . Weapon . | . . . . Parts Attached 57 | 7 26 6 18 Power 3 | 1 . . 2 Engine 3 | 1 . . 2 Core . | . . . . Reactor . | . . . . Propulsion 11 | 2 3 2 4 Treads 9 | 2 2 1 4 Leg . | . . . . Wheel 2 | . 1 1 . Hover . | . . . . Flight . | . . . . Utility 14 | 2 9 1 2 Device 10 | 1 7 1 1 Storage 3 | 1 1 . 1 Processor 1 | . 1 . . Hackware . | . . . . Protection . | . . . . Artifact . | . . . . Weapon 29 | 2 14 3 10 Energy Gun 7 | 1 1 2 3 Energy Cannon . | . . . . Ballistic Gun 11 | 1 6 . 4 Ballistic Cannon . | . . . . Launcher 10 | . 7 1 2 Special Weapon . | . . . . Impact Weapon . | . . . . Slashing Weapon . | . . . . Piercing Weapon . | . . . . Special Melee Weapon 1 | . . . 1 Unidentified Prototypes . | . . . . Parts Lost 8 | . . . 8 Power 1 | . . . 1 Propulsion 3 | . . . 3 Utility 1 | . . . 1 Weapon 3 | . . . 3 Highest Loss Streak 8 | . . . 8 To Critical Strikes 6 | . . . 6 Average Slot Usage (%) 99 | . 99 100 99 Engine 14 | . 14 14 14 Treads 20 | . 25 14 21 Wheel 6 | . 2 13 6 Device 13 | . 14 14 13 Storage 14 | . 14 14 14 Energy Gun 16 | . 14 26 12 Ballistic Gun 5 | . 13 . 1 Launcher 1 | . . 1 1 Special Melee Weapon 4 | . . . 12 Naked Turns . | . . . . Heaviest Build 96 | 14 91 91 96 Greatest Support 40 | 40 40 10 40 Greatest Overweight (x) 9 | . 9 9 8 Average Overweight (x) 5 | . 2 8 5 Largest Inventory Capacity 25 | 8 25 25 25 Average Capacity 22 | 7 20 25 24 Most Carried 25 | 4 22 24 25 Average Carried 16 | 2 9 23 19 Final Capacity 25 | 8 25 25 20 Final Carried 24 | 4 21 24 7 Class Distribution -------------------- 100% | Mutant Dominant Class ---------------- Mutant | -10/Materials Mutant | -10/Mines Mutant | -10/Exiles Resources | -11 -10 -10 -10 ----------- Run | Jun Mat Min Exi Matter Collected 1342 | 278 312 348 404 Remotely . | . . . . Salvage Created 827 | 202 480 134 11 Parts 53 | 11 33 9 . Haulers Intercepted 2 | . 2 . . Recyclers Shooed 2 | . 2 . . Parts Field Recycled . | . . . . Retrieved Matter . | . . . . Parts Self-Destructed . | . . . . Prevented . | . . . . Kills | -11 -10 -10 -10 ------- Run | Jun Mat Min Exi Combat Hostiles Destroyed 20 | . 12 6 2 Guns 10 | . 6 4 . AOE 10 | . 6 2 2 Classes Destroyed 10 | 2 7 . 1 Worker 2 | . 1 1 . Builder 2 | . 1 1 . Tunneler 4 | 4 . . . Hauler 2 | . 2 . . Recycler 2 | 1 1 . . Operator 1 | . 1 . . Watcher 1 | . 1 . . Swarmer 8 | . 3 5 . Grunt 10 | . 9 1 . Assembled 4 | . . . 4 Best Kill Streak 5 | 5 4 3 2 Combat Bots Only 3 | . 3 3 2 Max Kills in Single Turn 3 | 2 3 1 2 Gunslinging . | . . . . Exploded 2 | . 2 1 2 Melee . | . . . . Uniques/NPCs Destroyed 1 | . . . 1 EX-HEX (-10/Exiles) Combat | -11 -10 -10 -10 -------- Run | Jun Mat Min Exi Damage Taken 1882 | . 482 156 1244 Core 262 | . 78 7 177 Absorbed by Shields . | . . . . Core Remaining (%) 100 | 100 . . . Volleys Fired 126 | 8 52 13 53 Largest 2 | 2 2 2 2 Hottest 100 | 70 70 100 70 Shots Fired 239 | 16 94 23 106 Gun 222 | 16 84 20 102 Cannon . | . . . . Launcher 17 | . 10 3 4 Special . | . . . . Kinetic 135 | 8 42 . 85 Thermal 72 | 8 42 20 2 Explosive 17 | . 10 3 4 Electromagnetic 15 | . . . 15 Robot Hit Streak 16 | 7 16 4 16 Robot Miss Streak 2 | 2 2 2 2 Penetration Max . | . . . . Secondary Targets . | . . . . Shots Hit Robots 167 | 10 60 13 84 Core Hits 84 | 8 37 11 28 Critical Kills . | . . . . Critical Parts Destroyed 2 | . 1 . 1 Critical Strikes 10 | 2 5 2 1 Burn 8 | 2 4 2 . Destroy 2 | . 1 . 1 Melee Attacks 4 | . . . 4 Impact . | . . . . Slashing . | . . . . Piercing . | . . . . Sneak Attacks 4 | . . . 4 Combat Hostiles . | . . . . Follow-up Attacks . | . . . . Damage Inflicted 2850 | 132 1362 318 1038 Guns 1426 | 132 589 167 538 Cannons . | . . . . Explosions 1420 | . 769 151 500 Melee . | . . . . Ramming 4 | . 4 . . Kinetic 755 | 57 199 . 499 Thermal 725 | 75 390 167 93 Explosive 1350 | . 768 151 431 Electromagnetic 16 | . 1 . 15 Impact . | . . . . Slashing . | . . . . Piercing . | . . . . Highest Corruption . | . . . . Average Corruption . | . . . . Corruption Purged . | . . . . Corruption Blocked . | . . . . Overload Shots . | . . . . Overflow Damage 27 | . 1 . 26 Projectiles . | . . . . Explosions 27 | . 1 . 26 Melee . | . . . . Knockbacks . | . . . . Impact . | . . . . Kinetic . | . . . . Secondary . | . . . . Self-Inflicted Damage 67 | . . 38 29 Shots 3 | . . 2 1 Rammed 1 | . 1 . . Targets Rammed 1 | . 1 . . Kicked . | . . . . Crushed . | . . . . Highest Temperature 240 | 120 240 129 72 Average Temperature 53 | 58 60 50 33 Received Heat Transfer 219 | . 174 27 18 Siege Activations . | . . . . Robots Corrupted . | . . . . Combat Hostiles . | . . . . Parts Fried . | . . . . Impact Corruptions . | . . . . Robots Melted . | . . . . Combat Hostiles . | . . . . Parts Melted 8 | 1 3 4 . Heat Transferred 2472 | 370 1443 629 30 Parts Sabotaged . | . . . . Parts Stolen . | . . . . Parts Stripped . | . . . . Power Chain Reactions 2 | . 1 . 1 Missiles Intercepted . | . . . . Alert | -11 -10 -10 -10 ------- Run | Jun Mat Min Exi Peak Influence 248 | 25 248 159 . Initial 16 | . 16 9 . Average 67 | 10 93 37 . Maximum Alert Level 1 | . 1 . . Low Security (%) 96 | 100 93 100 . Level 1 3 | . 6 . . Level 2 . | . . . . Level 3 . | . . . . Level 4 . | . . . . Level 5 . | . . . . High Security . | . . . . Max Security . | . . . . Squads Dispatched 3 | . 3 . . Investigation 1 | . 1 . . Extermination . | . . . . Reinforcement 2 | . 2 . . Assault . | . . . . Garrison . | . . . . Intercept . | . . . . Searches Triggered . | . . . . Construction Impeded . | . . . . Haulers Reinforced . | . . . . Active Scanning Responses . | . . . . Cargo Convoy Interrupts . | . . . . Stealth | -11 -10 -10 -10 --------- Run | Jun Mat Min Exi Distress Signals 2 | . 2 . . Communications Jammed . | . . . . Distress Signals . | . . . . Times Spotted 38 | . 24 8 6 Peak Tracking Total 7 | . 3 2 7 Tactical Retreats 1 | . . 1 . Traps | -11 -10 -10 -10 ------- Run | Jun Mat Min Exi Traps Triggered 3 | . 3 . . Indirectly . | . . . . Trap Hack Attempts . | . . . . Triggered . | . . . . Disarmed . | . . . . Reprogrammed . | . . . . Reused . | . . . . Traps Extracted . | . . . . Installed . | . . . . Triggered . | . . . . Machines | -11 -10 -10 -10 ---------- Run | Jun Mat Min Exi Machines Disabled 5 | . 2 . 3 Max in Single Turn 1 | . 1 . 1 Machines Repaired . | . . . . Machines Sabotaged . | . . . . Overloaded Fab Kills . | . . . . Hacking | -11 -10 -10 -10 --------- Run | Jun Mat Min Exi Machines Accessed 8 | . 6 . 2 Terminals 6 | . 6 . . Fabricators . | . . . . Repair Stations . | . . . . Recycling Units . | . . . . Scanalyzers . | . . . . Garrison Access . | . . . . Total Hacks 24 | . 22 . 2 Successful 11 | . 9 . 2 Failed 13 | . 13 . . Catastrophic 2 | . 2 . . Database Lockouts . | . . . . Manual 17 | . 16 . 1 Terminals 22 | . 22 . . Fabricators . | . . . . Repair Stations . | . . . . Recycling Units . | . . . . Scanalyzers . | . . . . Garrison Access . | . . . . Terminal Hacks 10 | . 8 . 2 Record 1 | . . . 1 Part Schematic 1 | . 1 . . Robot Schematic 1 | . 1 . . Robot Analysis 1 | . 1 . . Prototype ID Bank 3 | . 3 . . Locate Traps 2 | . 2 . . Derelict Proto ID Bank 1 | . . . 1 Fabricator Hacks . | . . . . Repair Station Hacks . | . . . . Recycling Unit Hacks . | . . . . Scanalyzer . | . . . . Garrison Access Hacks . | . . . . Unauthorized Hacks 1 | . 1 . . Terminals 1 | . 1 . . Botnet 1 | . 1 . . Fabricators . | . . . . Repair Stations . | . . . . Recycling Units . | . . . . Scanalyzers . | . . . . Garrison Access . | . . . . Data Cores Recovered . | . . . . Used . | . . . . Hacking Detections 5 | . 5 . . Full Trace Events 1 | . 1 . . Feedback Events . | . . . . Feedback Blocked . | . . . . Robot Schematics Acquired 1 | . 1 . . Robots Built . | . . . . Authchips . | . . . . Time . | . . . . Total Robot Build Rating . | . . . . Part Schematics Acquired 1 | . 1 . . Parts Built . | . . . . Authchips . | . . . . Time . | . . . . Total Part Build Rating . | . . . . Parts Repaired . | . . . . Time . | . . . . Parts Recycled . | . . . . Recycled Matter . | . . . . Retrieved Matter . | . . . . Retrieved Components . | . . . . Parts Scanalyzed . | . . . . Part Schematics Acquired . | . . . . Parts Damaged . | . . . . Bothacking | -11 -10 -10 -10 ------------ Run | Jun Mat Min Exi Used RIF Installer . | . . . . Robots Hacked 4 | . . . 4 Non-combat 3 | . . . 3 Combat 1 | . . . 1 Robot Hacks Applied 4 | . . . 4 parse_system 4 | . . . 4 Relay Couplers Released . | . . . . Fabnet Peak Effective % . | . . . . Robots Rewired . | . . . . Allies Hacked . | . . . . Hacks Repelled . | . . . . Allies | -11 -10 -10 -10 -------- Run | Jun Mat Min Exi Total Allies 3 | . . 3 . Largest Group 3 | . . 3 3 Highest-Rated Group 40 | . . 40 40 Highest-Rated Ally 16 | . . 16 16 Total Orders 3 | . . . 3 STAY 2 | . . . 2 FOLLOW 1 | . . . 1 Ally Attacks 39 | . . 15 24 Total Damage 359 | . . 189 170 Kills 6 | . . 2 4 Allies Corrupted . | . . . . Allies Melted . | . . . . Intel | -11 -10 -10 -10 ------- Run | Jun Mat Min Exi Robot Analysis Total 1 | . 1 . . Derelict Logs Recovered 1 | . . 1 . Drone Launches . | . . . . Drone Recoveries . | . . . . Exploration | -11 -10 -10 -10 ------------- Run | Jun Mat Min Exi Turns Passed 5326 | 109 1864 1431 1922 Spaces Moved 2089 | 47 653 676 713 Core 2 | 2 . . . Treads 857 | 45 533 . 279 Legs . | . . . . Wheels 1230 | . 120 676 434 Hover . | . . . . Flight . | . . . . Fastest Speed 50 | 50 160 200 200 Average Speed 224 | 155 234 201 242 Slowest Speed 320 | 160 320 215 320 Overloaded Moves . | . . . . Propulsion Burnouts . | . . . . Robots Hopped . | . . . . Cave-ins Triggered . | . . . . Exploration Rate (%) 67 | 5 99 99 68 Regions Visited 3 Branch Regions 2 Pre-discovered Areas 2 | . . 1 1 Known Exits Taken . | . . . . Unknown Exits Taken 3 | 1 1 1 . Scrap Searched 2 | . . 2 . Spaces Dug 15 | . 15 . . Terrain Destroyed 90 | . 56 20 14 Melee . | . . . . Projectile . | . . . . AOE 90 | . 56 20 14 Terrain Rammed . | . . . . Walls Destroyed . | . . . . Machines Disabled . | . . . . Actions | -11 -10 -10 -10 --------- Run | Jun Mat Min Exi Total 2488 | 65 885 720 818 Wait 155 | . 132 23 . Move 2086 | 46 652 675 713 Hop . | . . . . Pick Up 34 | 4 17 3 10 Fast Attach 10 | 7 3 . . Attach 9 | . 1 . 8 Detach 3 | . 3 . . Swap 38 | . 22 6 10 Drop 22 | . 2 . 20 Fire 126 | 8 52 13 53 Melee 4 | . . . 4 Ram . | . . . . Kick . | . . . . Crush 1 | . 1 . . Escape Stasis . | . . . . Rewire . | . . . . Trap . | . . . . Miscellaneous . | . . . . Route ------- -11/Junkyard -10/Materials (discovered 5 exits: [*Mat x3] / [*Min] / [*Sub]) -10/Mines (discovered 4 exits: [*Mat x2] / *Exi / [*Sub]) -10/Exiles (discovered 1 exit: [*Min]) History --------- Turn | Location | Event 45 | -11/Junkyard | Discovered new exit (range 16) 110 | -11/Junkyard | Entered Materials 286 | -10/Materials | Discovered new exit (range 6) 316 | -10/Materials | Build established: Mutant 691 | -10/Materials | Discovered new exit (range 6) 1125 | -10/Materials | Discovered new exit (range 11) 1796 | -10/Materials | Discovered new exit (range 7) 1946 | -10/Materials | Discovered new exit (range 8) 1974 | -10/Materials | Entered Mines 2273 | -10/Mines | Deemed a non-threat by the Exiles lab entrance 2273 | -10/Mines | Discovered new exit (range 5) 2325 | -10/Mines | Discovered new exit (range 5) 2623 | -10/Mines | Discovered new exit (range 5) 2821 | -10/Mines | Assisted by bots powering up and referring to "LRC-V3" 3022 | -10/Mines | Discovered new exit (range 10) 3405 | -10/Mines | Entered Exiles 3405 | -10/Exiles | Accompanied by 3 allies 3551 | -10/Exiles | Met 8R-AWN 3585 | -10/Exiles | Met EX-HEX 3703 | -10/Exiles | Met EX-DEC 3763 | -10/Exiles | Learned location of Zion (-7) 3797 | -10/Exiles | Met EX-BIN 3983 | -10/Exiles | Aligned with FarCom system 3985 | -10/Exiles | Given EX-Vault access code 4031 | -10/Exiles | Opened EX-Vault 4041 | -10/Exiles | Found Cloak of Protection 4048 | -10/Exiles | Found XL Autogun Array 4089 | -10/Exiles | Warned to stay clear of 0b10 Research branches 4243 | -10/Exiles | Discovered new exit (range 14) 5169 | -10/Exiles | Attacked by the Exiles 5249 | -10/Exiles | Core integrity fell below 50% 5287 | -10/Exiles | Core integrity fell below 20% 5327 | -10/Exiles | Destroyed by 8R-AWN with 8R-AWN's Boregun Last Messages --------------- 05294_ Penetrated by HV Slug. 05294_ Critical hit (Destroy). 05294_ Lgt. Assault Rifle destroyed. 05297_ Extracted 10 matter. 05298_ Penetrated by HV Slug. 05299_ Extracted 1 matter. 05302_ Penetrated by HV Slug. 05302_ Critical hit (Destroy). 05302_ Med. Laser destroyed. 05302_ Penetrated by HV Slug. 05304_ Extracted 10 matter. 05304_ 8R-AWN suffers critical hit (Destroy). 05304_ Destroyed Adv. Myomer Leg. 05305_ Extracted 1 matter. 05305_ Penetrated by HV Slug. 05308_ Extracted 1 matter. 05310_ Penetrated by HV Slug. 05310_ Chain reaction triggered in Rnf. Fission Core. 05311_ Extracted 1 matter. 05314_ Penetrated by HV Slug. Map ----- +----------------------------------------------------+ | """#??????????????????????????????????? | | """#??????????????????????????????????? | | """#??????????????????????????????????? | | """#??????????????????????????????????? | | """#??????????????????????????????????? | | """""?????????????????????????????????? | | """#??????????????????????????????????? | | "X" """"??????????????????????????????????? | | """ #??????????????????????????????????? | | """""""""#??????????????????????????????????? | | ###########??????????????????????????????????? | | #????????????????????????????????????????????? | | #????????????????????????????????????????????? | | ##???????????????????????????????????????????? | | ##???####;######????????????????????????????? | | #####"""" """"##???????????????????????????? | | " """ """"##??????????????????????????? | | " " #??????????????????????????? | | """#??????????????????????????? | | a"#???????????#####??????????? | | " "##?????????##" #??????????? | | "###???????#" #??????????? | | "" ##?????##" ##?????????? | | #""" = = ;#???### ###???????? | | #####""" =%!*% !;###?# ######### | | ????##""" % !@ ;### #""""## | | ?????#"""" ! ! ;; | | ????##"" ! g ## | | ?####"""" ! #### | | ##""" ""#?#"""""#### | | """ #"""##?#######??#### | | ######??????????????## | | ##????????????????????? | | " ##?????????????????????? | | "" "" ""#??????????????????????? | | ##""" " " ""#" "##??????????????????????? | | ######""" """## ##???????????????????????? | | #????###""""### #????????????????????????? | | ####???######??### ##?????????????????????????? | | " #?????????????###???????????????????????????? | | !#???????????????????????????????????????????? | | "#???????????????????????????????????????????? | | "" "#???????????????????????????????????????????? | | ######???????????????????????????????????????????? | | ?????????????????????????????????????????????????? | | ?????????????????????????????????????????????????? | | ?????????????????????????????????????????????????? | | ?????????????????????????????????????????????????? | | ?????????????????????????????????????????????????? | | ?????????????????????????????????????????????????? | +----------------------------------------------------+ Best States ------------- Heat Dissipation 25 Energy Generation 10 Energy Capacity 250 Matter Stores 300 Matter Capacity 300 Sight Range 16 Terrain Scan Range 16 Terrain Scan Density 10 Evasion (%) 40 Recoil Reduction 2 Authchip Count 2 Item Schematics ----------------- Huge Storage Unit | -10/Materials | Hacked Robot Schematics ------------------ M-13 Machinist | -10/Materials | Hacked Fabricated ------------ Nothing Alien Tech Used ----------------- None Achievements -------------- None Challenges ------------ None Game ------ Seed CargoMultinovaBlaster Manual? 0 Play Time 00:24:29 Cumulative 414.6 hours Start 2023.12.01 @ 12:51:24 End 2023.12.12 @ 23:17:47 Sessions 6 Manual Loads 0 Difficulty Rogue Special Mode None Game No. 188 Rogue 188 Adventurer 0 Explorer 0 Win Type - Total 9 Types 6/0/1/1/0/0/0/1/0 Lore% 85 Gallery% 91 Achievement% 71 Wizard Run 0 Options --------- ASCII 1 Keyboard 1 Movement Vi Keybinds 0 Fullscreen 2 Font 24/Cog Map View 76x50 Tactical HUD 1 Map Filters NONE Filters NONE Steam 0 RUN: 90d2f9cd-fae7-4da2-8a9c-c0bbd389c3bc